lending/lending_fUSD_20240112
["ID","MTS","AMOUNT","RATE_DAILY","PERIOD"]
[311354761,1705067451311,-578.39,0.0002286,2]
[311354762,1705067451323,-500.0,0.0002286,2]
[311354763,1705067451335,-500.0,0.0002286,2]
[311354764,1705067451347,-865.61,0.0002286,2]
[311354765,1705067451359,-500.0,0.0002286,2]
[311354766,1705067451371,-500.0,0.0002286,2]
[311354767,1705067451383,-504.98,0.0002286,2]
[311354768,1705067451396,-500.0,0.0002286,2]
[311354769,1705067451407,-500.0,0.0002286,2]
[311354770,1705067451419,-785.43,0.0002286,2]
[311354771,1705067451430,-500.0,0.0002286,2]
[311354772,1705067451442,-500.0,0.0002286,2]
[311354773,1705067451453,-500.0,0.0002286,2]
[311354774,1705067451465,-500.0,0.0002286,2]
[311354775,1705067451476,-500.0,0.0002286,2]
[311354776,1705067451487,-500.0,0.0002286,2]
[311354777,1705067451498,-592.6,0.0002286,2]
[311354778,1705067451510,-802.88,0.0002286,2]
[311354779,1705067451522,-500.0,0.0002286,2]
[311354780,1705067451533,-1046.21,0.0002286,2]
[311354781,1705067451544,-500.0,0.0002286,2]
[311354782,1705067451555,-500.0,0.0002286,2]
[311354783,1705067451567,-500.0,0.0002286,2]
[311354784,1705067451578,-1019.63,0.0002286,2]
[311354785,1705067451590,-501.58,0.0002286,2]
[311354786,1705067451601,-500.0,0.0002286,2]
[311354787,1705067451613,-500.0,0.0002286,2]
[311354788,1705067451625,-1762.58,0.0002286,2]
[311354789,1705067451636,-500.0,0.0002286,2]
[311354790,1705067451647,-500.0,0.0002286,2]
[311354791,1705067451658,-742.28,0.0002286,2]
[311354792,1705067451670,-500.0,0.0002286,2]
[311354793,1705067451681,-1000.0,0.0002286,2]
[311354794,1705067451693,-500.0,0.0002286,2]
[311354795,1705067451704,-500.0,0.0002286,2]
[311354796,1705067451716,-500.0,0.0002286,2]
[311354797,1705067451728,-500.0,0.0002286,2]
[311354798,1705067451739,-500.0,0.0002286,2]
[311354799,1705067451751,-551.57,0.0002286,2]
[311354800,1705067451763,-544.63,0.0002286,2]
[311354801,1705067451773,-500.0,0.0002286,2]
[311354802,1705067451784,-500.0,0.0002286,2]
[311354803,1705067451795,-500.0,0.0002286,2]
[311354804,1705067451806,-500.0,0.0002286,2]
[311354805,1705067451817,-500.0,0.0002286,2]
[311354806,1705067451827,-511.99,0.0002286,2]
[311354807,1705067451839,-500.0,0.0002286,2]
[311354808,1705067451849,-500.0,0.0002286,2]
[311354809,1705067451860,-500.0,0.0002286,2]
[311354810,1705067451871,-500.0,0.0002286,2]
[311354811,1705067451881,-500.0,0.0002286,2]
[311354812,1705067451892,-513.65,0.0002286,2]
[311354813,1705067451903,-500.0,0.0002286,2]
[311354814,1705067451913,-500.0,0.0002286,2]
[311354815,1705067451924,-500.0,0.0002286,2]
[311354816,1705067451935,-500.0,0.0002286,2]
[311354817,1705067451946,-500.0,0.0002286,2]
[311354818,1705067451957,-620.45240012,0.0002286,2]
[311354819,1705067451968,-500.0,0.0002286,2]
[311354820,1705067451981,-522.55,0.0002286,2]
[311354821,1705067451993,-683.51,0.0002286,2]
[311354822,1705067452006,-500.0,0.0002286,2]
[311354823,1705067452017,-924.0,0.0002286,2]
[311354824,1705067452027,-500.0,0.0002286,2]
[311354825,1705067452038,-500.0,0.0002286,2]
[311354826,1705067452049,-500.0,0.0002286,2]
[311354827,1705067452060,-500.0,0.0002286,2]
[311354828,1705067452071,-500.0,0.0002286,2]
[311354829,1705067452083,-500.0,0.0002286,2]
[311354830,1705067452094,-677.56,0.0002286,2]
[311354831,1705067452106,-500.0,0.0002286,2]
[311354832,1705067452118,-500.0,0.0002286,2]
[311354833,1705067452131,-500.0,0.0002286,2]
[311354834,1705067452141,-500.0,0.0002286,2]
[311354835,1705067452152,-500.0,0.0002286,2]
[311354836,1705067452163,-500.0,0.0002286,2]
[311354837,1705067452174,-500.0,0.0002286,2]
[311354838,1705067452185,-612.68,0.0002286,2]
[311354839,1705067452196,-500.0,0.0002286,2]
[311354840,1705067452206,-500.0,0.0002286,2]
[311354841,1705067452217,-500.0,0.0002286,2]
[311354842,1705067452228,-500.0,0.0002286,2]
[311354843,1705067452239,-590.15,0.0002286,2]
[311354844,1705067452250,-500.0,0.0002286,2]
[311354845,1705067452264,-500.0,0.0002286,2]
[311354846,1705067452276,-500.0,0.0002286,2]
[311354847,1705067452287,-505.02,0.0002286,2]
[311354848,1705067452298,-500.0,0.0002286,2]
[311354849,1705067452309,-500.0,0.0002286,2]
[311354850,1705067452319,-548.99,0.0002286,2]
[311354851,1705067452330,-500.0,0.0002286,2]
[311354852,1705067452341,-543.6,0.0002286,2]
[311354853,1705067452352,-500.0,0.0002286,2]
[311354854,1705067452362,-632.89,0.0002286,2]
[311354855,1705067452373,-500.0,0.0002286,2]
[311354856,1705067452384,-500.0,0.0002286,2]
[311354857,1705067452395,-500.0,0.0002286,2]
[311354858,1705067452407,-1092.03,0.0002286,2]
[311354859,1705067452418,-590.54921757,0.0002286,2]
[311354860,1705067452428,-710.83,0.0002286,2]
[311354861,1705067452440,-545.64,0.0002286,2]
[311354862,1705067452451,-533.57,0.0002286,2]
[311354863,1705067452462,-500.0,0.0002286,2]
[311354864,1705067452473,-500.0,0.0002286,2]
[311354865,1705067452483,-547.06,0.0002286,2]
[311354866,1705067452494,-1000.0,0.0002286,2]
[311354867,1705067452507,-1007.67,0.0002286,2]
[311354868,1705067452518,-1191.64,0.0002286,2]
[311354869,1705067452528,-500.0,0.0002286,2]
[311354870,1705067452539,-653.87,0.0002286,2]
[311354871,1705067452550,-500.0,0.0002286,2]
[311354872,1705067452561,-567.05,0.0002286,2]
[311354873,1705067452571,-616.57,0.0002286,2]
[311354874,1705067452582,-920.08,0.0002286,2]
[311354875,1705067452593,-500.0,0.0002286,2]
[311354876,1705067452604,-500.0,0.0002286,2]
[311354877,1705067452615,-500.0,0.0002286,2]
[311354878,1705067452625,-500.0,0.0002286,2]
[311354879,1705067452636,-500.0,0.0002286,2]
[311354880,1705067452648,-500.0,0.0002286,2]
[311354881,1705067452659,-792.43,0.0002286,2]
[311354882,1705067452670,-500.0,0.0002286,2]
[311354883,1705067452681,-500.0,0.0002286,2]
[311354884,1705067452692,-717.68,0.0002286,2]
[311354885,1705067452703,-500.0,0.0002286,2]
[311354886,1705067452714,-615.74,0.0002286,2]
[311354887,1705067452725,-500.0,0.0002286,2]
[311354888,1705067452736,-500.0,0.0002286,2]
[311354889,1705067452747,-549.71,0.0002286,2]
[311354890,1705067452759,-533.96,0.0002286,2]
[311354891,1705067452770,-500.0,0.0002286,2]
[311354892,1705067452781,-545.26,0.0002286,2]
[311354893,1705067452791,-500.0,0.0002286,2]
[311354894,1705067452802,-500.0,0.0002286,2]
[311354895,1705067452812,-500.0,0.0002286,2]
[311354896,1705067452823,-500.0,0.0002286,2]
[311354897,1705067452833,-526.4,0.0002286,2]
[311354898,1705067452844,-753.76,0.0002286,2]
[311354899,1705067452855,-500.0,0.0002286,2]
[311354900,1705067452866,-500.0,0.0002286,2]
[311354901,1705067452877,-500.0,0.0002286,2]
[311354902,1705067452887,-500.0,0.0002286,2]
[311354903,1705067452898,-500.0,0.0002286,2]
[311354904,1705067452909,-228.867028,0.0002286,2]
[311354905,1705067452920,-568.06,0.0002286,2]
[311354906,1705067452930,-500.0,0.0002286,2]
[311354907,1705067452941,-500.0,0.0002286,2]
[311354908,1705067452952,-500.0,0.0002286,2]
[311354909,1705067452963,-500.0,0.0002286,2]
[311354910,1705067452973,-500.0,0.0002286,2]
[311354911,1705067452984,-500.0,0.0002286,2]
[311354912,1705067453433,-806.29,0.0002286,2]
[311354913,1705067453448,-500.0,0.0002286,2]
[311354914,1705067453475,-500.0,0.0002286,2]
[311354915,1705067453488,-500.0,0.0002286,2]
[311354916,1705067453497,-500.0,0.0002286,2]
[311354917,1705067453507,-500.0,0.0002286,2]
[311354918,1705067453517,-500.0,0.0002286,2]
[311354919,1705067453526,-222.21,0.0002286,2]
[311354920,1705067453536,-500.0,0.0002286,2]
[311354921,1705067453546,-848.08,0.0002286,2]
[311354922,1705067453555,-500.0,0.0002286,2]
[311354923,1705067453564,-977.29,0.0002286,2]
[311354924,1705067453573,-500.0,0.0002286,2]
[311354925,1705067453582,-500.0,0.0002286,2]
[311354926,1705067453591,-500.0,0.0002286,2]
[311354927,1705067453600,-500.0,0.0002286,2]
[311354928,1705067453609,-500.0,0.0002286,2]
[311354929,1705067453619,-500.0,0.0002286,2]
[311354930,1705067453632,-428.64288625,0.0002286,2]
[311354931,1705067453643,-500.0,0.0002286,2]
[311354932,1705067453654,-516.56,0.0002286,2]
[311354933,1705067453663,-300.0,0.0002286,2]
[311354934,1705067453673,-500.0,0.0002286,2]
[311354935,1705067453683,-500.0,0.0002286,2]
[311354936,1705067453692,-500.0,0.0002286,2]
[311354937,1705067453702,-500.0,0.0002286,2]
[311354938,1705067453712,-189.51704372,0.0002286,2]
[311354939,1705067453720,-764.31,0.0002286,2]
[311354940,1705067453729,-555.48,0.0002286,2]
[311354941,1705067453738,-500.0,0.0002286,2]
[311354942,1705067453748,-500.0,0.0002286,2]
[311354943,1705067453759,-500.0,0.0002286,2]
[311354944,1705067453768,-500.0,0.0002286,2]
[311354945,1705067453778,-675.05,0.0002286,2]
[311354946,1705067453788,-500.0,0.0002286,2]
[311354947,1705067453798,-500.0,0.0002286,2]
[311354948,1705067453807,-500.0,0.0002286,2]
[311354949,1705067453817,-258.45038459,0.0002286,2]
[311354950,1705067453827,-500.0,0.0002286,2]
[311354951,1705067453838,-500.0,0.0002286,2]
[311354952,1705067453847,-500.0,0.0002286,2]
[311354953,1705067453856,-500.0,0.0002286,2]
[311354954,1705067453866,-696.67,0.0002286,2]
[311354955,1705067453875,-500.0,0.0002286,2]
[311354956,1705067453885,-549.27,0.0002286,2]
[311354957,1705067453895,-537.5,0.0002286,2]
[311354958,1705067453904,-794.27,0.0002286,2]
[311354959,1705067453915,-500.0,0.0002286,2]
[311354960,1705067453924,-1478.94,0.0002286,2]
[311354961,1705067453934,-2259.65,0.0002286,2]
[311354962,1705067453944,-592.72,0.0002286,2]
[311354963,1705067453954,-500.0,0.0002286,2]
[311354964,1705067453963,-500.0,0.0002286,2]
[311354965,1705067453972,-508.59,0.0002286,2]
[311354966,1705067453982,-500.0,0.0002286,2]
[311354967,1705067453992,-500.0,0.0002286,2]
[311354968,1705067454002,-1082.32,0.0002286,2]
[311354969,1705067454013,-5818.98,0.0002286,2]
[311354970,1705067454023,-613.36,0.0002286,2]
[311354971,1705067454034,-500.0,0.0002286,2]
[311354972,1705067454044,-500.0,0.0002286,2]
[311354973,1705067454053,-500.0,0.0002286,2]
[311354974,1705067454062,-500.0,0.0002286,2]
[311354975,1705067454071,-500.0,0.0002286,2]
[311354976,1705067454081,-500.0,0.0002286,2]
[311354977,1705067454091,-500.0,0.0002286,2]
[311354978,1705067454101,-560.75,0.0002286,2]
[311354979,1705067454112,-500.0,0.0002286,2]
[311354980,1705067454122,-501.17,0.0002286,2]
[311354981,1705067454132,-500.0,0.0002286,2]
[311354982,1705067454141,-941.07,0.0002286,2]
[311354983,1705067454150,-568.7,0.0002286,2]
[311354984,1705067454161,-500.0,0.0002286,2]
[311354985,1705067454171,-500.0,0.0002286,2]
[311354986,1705067454181,-610.82,0.0002286,2]
[311354987,1705067454191,-2025.81,0.0002286,2]
[311354988,1705067454202,-627.28,0.0002286,2]
[311354989,1705067454213,-793.23,0.0002286,2]
[311354990,1705067454223,-500.0,0.0002286,2]
[311354991,1705067454233,-500.0,0.0002286,2]
[311354992,1705067454243,-423.22315372,0.0002286,2]
[311354993,1705067454252,-500.0,0.0002286,2]
[311354994,1705067454263,-500.0,0.0002286,2]
[311354995,1705067454273,-500.0,0.0002286,2]
[311354996,1705067454283,-500.0,0.0002286,2]
[311354997,1705067454293,-500.0,0.0002286,2]
[311354998,1705067454303,-500.0,0.0002286,2]
[311354999,1705067454313,-500.0,0.0002286,2]
[311355000,1705067454323,-1268.72,0.0002286,2]
[311355001,1705067454332,-500.0,0.0002286,2]
[311355002,1705067454342,-3058.91,0.0002286,2]
[311355003,1705067454352,-500.0,0.0002286,2]
[311355004,1705067454361,-645.36,0.0002286,2]
[311355005,1705067454371,-500.0,0.0002286,2]
[311355006,1705067454381,-500.0,0.0002286,2]
[311355007,1705067454390,-500.0,0.0002286,2]
[311355008,1705067454400,-594.49,0.0002286,2]
[311355009,1705067454411,-500.0,0.0002286,2]
[311355010,1705067454421,-500.0,0.0002286,2]
[311355011,1705067454430,-523.76,0.0002286,2]
[311355012,1705067454440,-967.54,0.0002286,2]
[311355013,1705067454449,-500.0,0.0002286,2]
[311355014,1705067454458,-698.09,0.0002286,2]
[311355015,1705067454468,-500.0,0.0002286,2]
[311355016,1705067454477,-1774.52,0.0002286,2]
[311355017,1705067454487,-500.0,0.0002286,2]
[311355018,1705067454497,-500.0,0.0002286,2]
[311355019,1705067454508,-672.72,0.0002286,2]
[311355020,1705067454517,-1366.67,0.0002286,2]
[311355021,1705067454527,-640.24,0.0002286,2]
[311355022,1705067454537,-650.29,0.0002286,2]
[311355023,1705067454546,-1109.5,0.0002286,2]
[311355024,1705067454557,-653.12,0.0002286,2]
[311355025,1705067454567,-500.0,0.0002286,2]
[311355026,1705067454578,-2402.79,0.0002286,2]
[311355027,1705067454587,-500.0,0.0002286,2]
[311355028,1705067454598,-500.0,0.0002286,2]
[311355029,1705067454607,-500.0,0.0002286,2]
[311355030,1705067454617,-682.08,0.0002286,2]
[311355031,1705067454626,-2173.55,0.0002286,2]
[311355032,1705067454635,-604.31,0.0002286,2]
[311355033,1705067454644,-500.0,0.0002286,2]
[311355034,1705067454654,-1581.39,0.0002286,2]
[311355035,1705067454663,-500.0,0.0002286,2]
[311355036,1705067454673,-500.0,0.0002286,2]
[311355037,1705067454682,-1124.99,0.0002286,2]
[311355038,1705067454692,-500.0,0.0002286,2]
[311355039,1705067454702,-500.0,0.0002286,2]
[311355040,1705067454712,-619.21,0.0002286,2]
[311355041,1705067454722,-500.0,0.0002286,2]
[311355042,1705067454732,-500.0,0.0002286,2]
[311355043,1705067454741,-1172.6,0.0002286,2]
[311355044,1705067454751,-500.0,0.0002286,2]
[311355045,1705067454764,-500.0,0.0002286,2]
[311355046,1705067454774,-771.85,0.0002286,2]
[311355047,1705067454783,-613.44,0.0002286,2]
[311355048,1705067454793,-843.5,0.0002286,2]
[311355049,1705067454804,-500.0,0.0002286,2]
[311355050,1705067454814,-752.62,0.0002286,2]
[311355051,1705067454823,-500.0,0.0002286,2]
[311355052,1705067454833,-500.0,0.0002286,2]
[311355053,1705067454843,-230.69397145,0.0002286,2]
[311355054,1705067454853,-1338.76,0.0002286,2]
[311355055,1705067454863,-570.42,0.0002286,2]
[311355056,1705067454873,-500.0,0.0002286,2]
[311355057,1705067454883,-500.0,0.0002286,2]
[311355058,1705067454893,-506.47,0.0002286,2]
[311355059,1705067454903,-500.0,0.0002286,2]
[311355060,1705067454913,-2558.46,0.0002286,2]
[311355061,1705067454923,-500.0,0.0002286,2]
[311355062,1705067454933,-276.94,0.0002286,2]
[311355063,1705067454943,-500.0,0.0002286,2]
[311355064,1705067454953,-500.0,0.0002286,2]
[311355065,1705067454962,-778.89,0.0002286,2]
[311355066,1705067454972,-500.0,0.0002286,2]
[311355067,1705067454982,-608.12,0.0002286,2]
[311355068,1705067454991,-761.66,0.0002286,2]
[311355069,1705067455001,-500.0,0.0002286,2]
[311355070,1705067455012,-500.0,0.0002286,2]
[311355071,1705067455021,-500.0,0.0002286,2]
[311355072,1705067455031,-606.09,0.0002286,2]
[311355073,1705067455041,-2321.31,0.0002286,2]
[311355074,1705067455051,-503.85,0.0002286,2]
[311355075,1705067455061,-792.73,0.0002286,2]
[311355076,1705067455070,-505.57,0.0002286,2]
[311355077,1705067455080,-986.73,0.0002286,2]
[311355078,1705067455089,-500.0,0.0002286,2]
[311355079,1705067455099,-500.0,0.0002286,2]
[311355080,1705067455108,-1855.62,0.0002286,2]
[311355081,1705067455118,-500.0,0.0002286,2]
[311355082,1705067455129,-500.0,0.0002286,2]
[311355083,1705067455139,-544.3,0.0002286,2]
[311355084,1705067455148,-500.0,0.0002286,2]
[311355085,1705067455158,-922.23,0.0002286,2]
[311355086,1705067455168,-500.0,0.0002286,2]
[311355087,1705067455177,-855.09,0.0002286,2]
[311355088,1705067455187,-1739.46,0.0002286,2]
[311355089,1705067455197,-539.44,0.0002286,2]
[311355090,1705067455207,-500.0,0.0002286,2]
[311355091,1705067455217,-500.0,0.0002286,2]
[311355092,1705067455227,-628.22,0.0002286,2]
[311355093,1705067455236,-500.0,0.0002286,2]
[311355094,1705067455246,-564.76,0.0002286,2]
[311355095,1705067455256,-500.0,0.0002286,2]
[311355096,1705067455266,-500.0,0.0002286,2]
[311355097,1705067455276,-168.54345584,0.0002286,2]
[311355098,1705067455286,-500.0,0.0002286,2]
[311355099,1705067455296,-500.0,0.0002286,2]
[311355100,1705067455306,-500.0,0.0002286,2]
[311355101,1705067455316,-500.0,0.0002286,2]
[311355102,1705067455325,-500.0,0.0002286,2]
[311355103,1705067455335,-5795.35,0.0002286,2]
[311355104,1705067455345,-500.0,0.0002286,2]
[311355105,1705067455354,-500.0,0.0002286,2]
[311355106,1705067455364,-500.0,0.0002286,2]
[311355107,1705067455374,-500.0,0.0002286,2]
[311355108,1705067455383,-518.54,0.0002286,2]
[311355109,1705067455393,-577.35,0.0002286,2]
[311355110,1705067455403,-2238.52,0.0002286,2]
[311355111,1705067455412,-506.82,0.00022861,2]
[311355112,1705067455422,-898.46,0.00022861,2]
[311355113,1705067455431,-689.65,0.00022861,2]
[311355114,1705067455442,-689.5,0.00022861,2]
[311355115,1705067455451,-544.38,0.00022861,2]
[311355116,1705067455462,-517.93,0.00022861,2]
[311355117,1705067455472,-500.0,0.00022861,2]
[311355118,1705067455482,-500.0,0.00022861,2]
[311355119,1705067455492,-603.88,0.00022861,2]
[311355120,1705067455501,-500.0,0.00022861,2]
[311355121,1705067455512,-807.14,0.00022861,2]
[311355122,1705067455522,-500.0,0.00022861,2]
[311355123,1705067455531,-500.0,0.00022861,2]
[311355124,1705067455541,-763.57,0.00022861,2]
[311355125,1705067455550,-500.0,0.00022861,2]
[311355126,1705067455560,-500.0,0.00022861,2]
[311355127,1705067455570,-500.0,0.00022861,2]
[311355128,1705067455579,-500.0,0.00022861,2]
[311355129,1705067455589,-881.83,0.00022861,2]
[311355130,1705067455598,-500.0,0.00022861,2]
[311355131,1705067455608,-500.0,0.00022861,2]
[311355132,1705067455617,-547.66,0.00022861,2]
[311355133,1705067455626,-717.02,0.00022861,2]
[311355134,1705067455635,-500.0,0.00022861,2]
[311355135,1705067455645,-500.0,0.00022861,2]
[311355136,1705067455654,-588.39,0.00022861,2]
[311355137,1705067455663,-500.0,0.00022862,2]
[311355138,1705067455672,-500.0,0.00022863,2]
[311355139,1705067455682,-500.0,0.00022863,2]
[311355140,1705067455691,-500.0,0.00022863,2]
[311355141,1705067455700,-500.0,0.00022863,2]
[311355142,1705067455711,-500.0,0.00022863,2]
[311355143,1705067455721,-500.0,0.00022863,2]
[311355144,1705067455730,-500.0,0.00022863,2]
[311355145,1705067455741,-500.0,0.00022863,2]
[311355146,1705067455751,-500.0,0.00022863,2]
[311355147,1705067455761,-500.0,0.00022863,2]
[311355148,1705067455771,-478.01771336,0.00022863,2]
[311355149,1705067455782,-500.0,0.00022863,2]
[311355150,1705067455791,-500.0,0.00022863,2]
[311355151,1705067455801,-500.0,0.00022863,2]
[311355152,1705067455810,-500.0,0.00022863,2]
[311355153,1705067455819,-500.0,0.00022863,2]
[311355154,1705067455828,-500.0,0.00022863,2]
[311355155,1705067455838,-500.0,0.00022863,2]
[311355156,1705067455848,-500.0,0.00022863,2]
[311355157,1705067455857,-500.0,0.00022863,2]
[311355158,1705067455867,-500.0,0.00022863,2]
[311355159,1705067455876,-500.0,0.00022863,2]
[311355160,1705067455886,-500.0,0.00022863,2]
[311355161,1705067456053,-500.0,0.00022863,2]
[311355162,1705067456098,-500.0,0.00022863,2]
[311355163,1705067456108,-500.0,0.00022863,2]
[311355164,1705067456118,-500.0,0.00022863,2]
[311355165,1705067456129,-500.0,0.00022863,2]
[311355166,1705067456139,-500.0,0.00022863,2]
[311355167,1705067456149,-500.0,0.00022863,2]
[311355168,1705067456159,-402.7261641,0.00022863,2]
[311355169,1705067456168,-500.0,0.00022863,2]
[311355170,1705067456178,-500.0,0.00022863,2]
[311355171,1705067456188,-500.0,0.00022863,2]
[311355172,1705067456199,-500.0,0.00022863,2]
[311355173,1705067456210,-500.0,0.00022899,2]
[311355174,1705067456221,-150.0,0.00023,2]
[311355175,1705067456232,-1371.67914974,0.00023012,2]
[311355176,1705067456243,-4667.32773386,0.00023034,2]
[311355177,1705067456253,-250.76242132,0.00023034,2]
[311355178,1705067456265,-195.75754635,0.00023034,2]
[311355179,1705067456275,-1637.40126482,0.00023035,2]
[311355180,1705067456284,-500.0,0.00023133,2]
[311355181,1705067456294,-500.0,0.00023133,2]
[311355182,1705067456304,-500.0,0.00023133,2]
[311355183,1705067456313,-500.0,0.00023133,2]
[311355184,1705067456323,-500.0,0.00023133,2]
[311355185,1705067456332,-500.0,0.00023133,2]
[311355186,1705067456342,-500.0,0.00023133,2]
[311355187,1705067456352,-209.80393185,0.00023133,2]
[311355188,1705067456362,-500.0,0.00023133,2]
[311355189,1705067456372,-500.0,0.00023133,2]
[311355190,1705067456381,-500.0,0.00023133,2]
[311355191,1705067456390,-500.0,0.00023133,2]
[311355192,1705067456400,-500.0,0.00023133,2]
[311355193,1705067456410,-500.0,0.00023133,2]
[311355194,1705067456420,-500.0,0.00023133,2]
[311355195,1705067456430,-500.0,0.00023133,2]
[311355196,1705067456440,-193.50630669,0.00023133,2]
[311355197,1705067456450,-500.0,0.00023133,2]
[311355198,1705067456459,-500.0,0.00023133,2]
[311355199,1705067456470,-323.83977252,0.00023133,2]
[311355200,1705067456479,-500.0,0.00023133,2]
[311355201,1705067456489,-500.0,0.00023133,2]
[311355202,1705067456499,-500.0,0.00023133,2]
[311355203,1705067456508,-500.0,0.00023133,2]
[311355204,1705067456520,-500.0,0.00023133,2]
[311355205,1705067456530,-500.0,0.00023133,2]
[311355206,1705067456540,-505.4,0.00023133,2]
[311355207,1705067456550,-500.0,0.00023133,2]
[311355208,1705067456560,-500.0,0.00023133,2]
[311355209,1705067456569,-500.0,0.00023133,2]
[311355210,1705067456579,-1250.65,0.00023133,2]
[311355211,1705067456588,-500.0,0.00023133,2]
[311355212,1705067456598,-500.0,0.00023133,2]
[311355213,1705067456607,-7981.48,0.00023133,2]
[311355214,1705067456617,-500.0,0.00023133,2]
[311355215,1705067456626,-500.0,0.00023133,2]
[311355216,1705067456636,-535.31,0.00023133,2]
[311355217,1705067456645,-1261.36,0.00023133,2]
[311355218,1705067456654,-500.0,0.00023133,2]
[311355219,1705067456665,-8984.16,0.00023133,2]
[311355220,1705067456674,-500.0,0.00023133,2]
[311355221,1705067456685,-1671.94,0.00023133,2]
[311355222,1705067456694,-3195.18,0.00023133,2]
[311355223,1705067456703,-12299.66,0.00023133,2]
[311355224,1705067456712,-1110.57,0.00023133,2]
[311355225,1705067456724,-630.64,0.00023133,2]
[311355226,1705067456733,-500.0,0.00023133,2]
[311355227,1705067456743,-3123.71,0.00023133,2]
[311355228,1705067456753,-500.0,0.00023133,2]
[311355229,1705067456765,-500.0,0.00023133,2]
[311355230,1705067456775,-882.43,0.00023133,2]
[311355231,1705067456784,-2779.34,0.00023133,2]
[311355232,1705067456793,-500.0,0.00023133,2]
[311355233,1705067456803,-941.84,0.00023133,2]
[311355234,1705067456813,-703.36,0.00023133,2]
[311355235,1705067456824,-500.0,0.00023133,2]
[311355236,1705067456833,-580.21,0.00023133,2]
[311355237,1705067456842,-500.0,0.00023133,2]
[311355238,1705067456851,-22278.0,0.00023133,2]
[311355239,1705067456861,-500.0,0.00023133,2]
[311355240,1705067456870,-500.0,0.00023133,2]
[311355241,1705067456880,-2697.74,0.00023133,2]
[311355242,1705067456889,-2896.08,0.00023133,2]
[311355243,1705067456899,-1033.16,0.00023133,2]
[311355244,1705067456909,-500.0,0.00023133,2]
[311355245,1705067456918,-500.0,0.00023133,2]
[311355246,1705067456928,-1299.72,0.00023133,2]
[311355247,1705067456938,-1239.07,0.00023133,2]
[311355248,1705067456947,-994.29,0.00023133,2]
[311355249,1705067456957,-2369.38,0.00023133,2]
[311355250,1705067456966,-500.0,0.00023133,2]
[311355251,1705067456976,-586.7,0.00023133,2]
[311355252,1705067456986,-500.0,0.00023133,2]
[311355253,1705067456996,-508.66,0.00023133,2]
[311355254,1705067457006,-500.0,0.00023133,2]
[311355255,1705067457017,-500.0,0.00023133,2]
[311355256,1705067457026,-500.0,0.00023133,2]
[311355257,1705067457035,-500.0,0.00023133,2]
[311355258,1705067457045,-500.0,0.00023133,2]
[311355259,1705067457055,-6520.81,0.00023133,2]
[311355260,1705067457065,-500.0,0.00023133,2]